bitfinex/quotes_SOLUSD_20250622
["timestamp","ask_amount","ask_price","bid_price","bid_amount"]
[1750561133339,43.28804967,135.1,135.06,26.63669471]
[1750561133538,5.51169231,135.09,135.06,26.63669471]
[1750561133750,32.2,135.1,135.06,26.63669471]
[1750561134337,26.0,135.13,135.07,11.08804967]
[1750561134632,16.59665299,135.12,135.08,15.54634289]
[1750561134943,5.50860332,135.11,135.08,15.54634289]
[1750561135146,11.08804967,135.12,135.08,15.54634289]
[1750561135358,5.50802384,135.11,135.08,15.54634289]
[1750561135548,11.08804967,135.12,135.08,15.54634289]
[1750561135738,5.50714936,135.11,135.08,15.54634289]
[1750561135942,11.08804967,135.12,135.08,15.54634289]
[1750561136181,5.50660325,135.11,135.08,15.54634289]
[1750561136441,11.08804967,135.12,135.08,15.54634289]
[1750561137552,5.50221696,135.12,135.08,26.63439256]
[1750561137733,5.50221696,135.12,135.09,11.08804967]
[1750561137935,26.0,135.13,135.09,11.08804967]
[1750561138663,26.0,135.13,135.1,4.4411547]
[1750561140057,37.08804967,135.13,135.1,4.4411547]
[1750561141040,37.08804967,135.13,135.09,4.44148345]
[1750561141562,26.0,135.13,135.09,15.52953312]
[1750561141770,5.49444021,135.13,135.09,4.44148345]
[1750561141944,11.08804967,135.15,135.1,11.08804967]
[1750561142267,16.58595528,135.14,135.09,15.52953312]
[1750561142439,18.15854725,135.13,135.09,4.44148345]
[1750561142644,11.08804967,135.12,135.09,4.44148345]
[1750561142851,16.58534725,135.12,135.09,4.44148345]
[1750561144171,16.58534725,135.12,135.08,4.44181225]
[1750561144866,11.08804967,135.09,135.06,4.44247001]
[1750561145284,16.58534725,135.09,135.06,4.44247001]
[1750561145568,11.08804967,135.08,135.06,4.44247001]
[1750561145768,11.08804967,135.09,135.05,4.44279896]
[1750561145973,5.49729758,135.08,135.05,4.44279896]
[1750561149753,11.08804967,135.09,135.05,4.44279896]
[1750561149951,5.49729758,135.08,135.05,4.44279896]
[1750561153368,16.58534725,135.08,135.03,11.08804967]
[1750561153682,11.08804967,135.08,135.03,11.08804967]
[1750561154054,16.59845679,135.08,135.03,11.08804967]
[1750561154377,5.51040712,135.1,135.03,11.08804967]
[1750561154554,11.08804967,135.08,135.03,11.08804967]
[1750561154753,16.59845679,135.08,135.03,11.08804967]
[1750561154989,11.08804967,135.08,135.04,11.08804967]
[1750561155190,16.59711852,135.09,135.05,11.08804967]
[1750561155502,11.08804967,135.09,135.05,11.08804967]
[1750561155696,5.50906885,135.1,135.06,4.44247001]
[1750561155927,4.44063202,135.12,135.06,4.44247001]
[1750561155928,11.08804967,135.09,135.06,4.44247001]
[1750561157601,11.08804967,135.1,135.06,15.53051968]
[1750561158089,11.08804967,135.1,135.06,4.44247001]
[1750561158272,11.08804967,135.09,135.06,4.44247001]
[1750561159471,5.50916036,135.08,135.06,4.44247001]
[1750561159671,11.08804967,135.09,135.06,4.44247001]
[1750561159874,5.51098818,135.08,135.06,4.44247001]
[1750561160082,11.08804967,135.09,135.06,4.44247001]
[1750561160284,5.51109094,135.08,135.06,4.44247001]
[1750561160574,11.08804967,135.09,135.06,4.44247001]
[1750561160774,5.51186449,135.08,135.06,4.44247001]
[1750561160984,11.08804967,135.09,135.06,4.44247001]
[1750561161182,5.51188234,135.08,135.05,4.44279896]
[1750561161383,11.08804967,135.09,135.05,4.44279896]
[1750561161698,5.51219496,135.08,135.05,4.44279896]
[1750561161898,11.08804967,135.09,135.05,4.44279896]
[1750561162093,5.51271219,135.08,135.05,4.44279896]
[1750561162275,11.08804967,135.09,135.05,4.44279896]
[1750561162482,5.51203798,135.08,135.05,4.44279896]
[1750561162679,11.08804967,135.09,135.05,4.44279896]
[1750561162881,5.51353198,135.08,135.05,4.44279896]
[1750561163088,11.08804967,135.09,135.05,4.44279896]
[1750561163409,5.51365217,135.08,135.05,4.44279896]
[1750561163582,11.08804967,135.09,135.05,4.44279896]
[1750561163783,5.51407117,135.08,135.05,4.44279896]
[1750561164013,11.08804967,135.09,135.05,4.44279896]
[1750561164200,5.51389494,135.08,135.05,4.44279896]
[1750561164390,11.08804967,135.09,135.05,4.44279896]
[1750561164586,5.51107359,135.08,135.05,4.44279896]
[1750561164793,11.08804967,135.09,135.05,4.44279896]
[1750561164993,5.51083894,135.08,135.05,4.44279896]
[1750561165198,11.08804967,135.09,135.05,4.44279896]
[1750561165407,5.50845868,135.08,135.05,4.44279896]
[1750561165587,11.08804967,135.09,135.05,4.44279896]
[1750561165786,5.50782494,135.08,135.05,4.44279896]
[1750561166014,11.08804967,135.09,135.05,4.44279896]
[1750561166184,5.50657454,135.08,135.05,4.44279896]
[1750561166385,11.08804967,135.09,135.05,4.44279896]
[1750561166586,5.50759017,135.08,135.05,4.44279896]
[1750561166784,11.08804967,135.09,135.05,4.44279896]
[1750561166984,5.50849463,135.08,135.05,4.44279896]
[1750561167214,11.08804967,135.09,135.05,4.44279896]
[1750561167502,5.50832132,135.08,135.05,4.44279896]
[1750561167697,11.08804967,135.09,135.05,4.44279896]
[1750561167912,5.5077643,135.08,135.05,4.44279896]
[1750561168208,11.08804967,135.09,135.05,4.44279896]
[1750561168409,5.5120629,135.08,135.05,4.44279896]
[1750561168620,11.08804967,135.09,135.05,4.44279896]
[1750561168795,5.51242166,135.08,135.03,15.55137796]
[1750561168994,11.08804967,135.09,135.04,11.08804967]
[1750561169211,5.51531048,135.08,135.05,26.0]
[1750561169509,11.08804967,135.09,135.05,26.0]
[1750561169710,5.51509316,135.08,135.05,26.0]
[1750561169910,11.08804967,135.09,135.06,4.44247001]
[1750561170221,5.51542293,135.08,135.06,30.44247001]
[1750561170379,11.08804967,135.09,135.06,30.44247001]
[1750561170587,5.51538289,135.08,135.06,30.44247001]
[1750561170899,11.08804967,135.09,135.06,30.44247001]
[1750561171088,5.51609946,135.08,135.06,30.44247001]
[1750561171402,11.08804967,135.09,135.06,30.44247001]
[1750561171602,5.51609397,135.08,135.06,30.44247001]
[1750561171803,11.08804967,135.09,135.06,30.44247001]
[1750561172025,5.51631571,135.08,135.06,30.44247001]
[1750561172194,11.08804967,135.09,135.06,4.44247001]
[1750561172388,5.51593204,135.08,135.06,4.44247001]
[1750561172590,11.08804967,135.09,135.06,4.44247001]
[1750561172811,5.517309,135.08,135.05,4.44279896]
[1750561173016,11.08804967,135.08,135.05,4.44279896]
[1750561173191,5.51784867,135.07,135.05,4.44279896]
[1750561173393,11.08804967,135.08,135.05,4.44279896]
[1750561173610,5.51684061,135.07,135.05,4.44279896]
[1750561173819,11.08804967,135.08,135.05,4.44279896]
[1750561174012,5.51713592,135.07,135.05,4.44279896]
[1750561174211,11.08804967,135.08,135.05,4.44279896]
[1750561174517,5.5172165,135.07,135.05,4.44279896]
[1750561174814,11.08804967,135.08,135.03,26.63942763]
[1750561174990,5.51819169,135.07,135.03,26.63942763]
[1750561175190,5.51819169,135.06,135.03,26.63942763]
[1750561175399,11.08804967,135.08,135.03,26.63942763]
[1750561175608,5.51717772,135.07,135.03,26.63942763]
[1750561175782,5.51717772,135.06,135.03,26.63942763]
[1750561175985,11.08804967,135.08,135.03,26.63942763]
[1750561176219,5.51731571,135.07,135.03,26.63942763]
[1750561176416,5.51731571,135.06,135.03,26.63942763]
[1750561176726,6.89258897,135.09,135.03,26.63942763]
[1750561176727,11.08804967,135.07,135.03,4.443457]
[1750561176909,5.51725945,135.06,135.03,15.53150667]
[1750561177223,11.08804967,135.07,135.03,15.53150667]
[1750561177414,5.51734761,135.06,135.03,4.443457]
[1750561177615,11.08804967,135.07,135.03,15.53150667]
[1750561177920,5.5166895,135.06,135.03,15.53150667]
[1750561178113,11.08804967,135.07,135.03,15.53150667]
[1750561178399,5.51672914,135.06,135.03,15.53150667]
[1750561178598,11.08804967,135.07,135.03,4.443457]
[1750561178799,11.08804967,135.05,135.02,4.44374512]
[1750561178986,8.48778897,135.08,135.02,4.44374512]
[1750561179190,11.08804967,135.05,135.02,4.44374512]
[1750561181113,11.08804967,135.05,135.0,11.11030166]
[1750561181317,11.08804967,135.05,135.01,11.08804967]
[1750561181821,11.08804967,135.05,135.0,15.5547461]
[1750561181995,11.08804967,135.05,135.0,26.64279577]
[1750561183128,11.08804967,135.06,135.01,11.08804967]
[1750561183508,5.51671033,135.05,135.01,11.08804967]
[1750561183829,11.08804967,135.06,135.01,11.08804967]
[1750561184023,16.60557018,135.05,135.01,11.08804967]
[1750561184337,11.08804967,135.05,135.01,11.08804967]
[1750561185023,16.60347203,135.04,134.99,37.39769853]
[1750561185204,11.08804967,135.04,134.99,37.39769853]
[1750561185726,11.08804967,135.04,135.0,4.44444444]
[1750561186292,11.08804967,135.04,135.0,15.53249411]
[1750561187019,43.29485975,135.07,135.0,15.53249411]
[1750561187020,11.08804967,135.05,135.0,15.53249411]
[1750561187213,5.51491727,135.04,135.0,15.53249411]
[1750561187420,11.08804967,135.05,135.0,15.53249411]
[1750561187605,5.51491727,135.04,135.0,15.53249411]
[1750561187807,11.08804967,135.05,135.0,15.53249411]
[1750561188027,5.51510977,135.04,135.0,15.53249411]
[1750561188321,11.08804967,135.05,135.0,15.53249411]
[1750561188523,5.51462347,135.04,135.0,15.53249411]
[1750561188698,11.08804967,135.05,135.0,15.53249411]
[1750561188900,5.5146895,135.04,135.0,15.53249411]
[1750561189092,11.08804967,135.05,135.0,15.53249411]
[1750561189301,5.5167835,135.04,135.0,4.44444444]
[1750561189604,5.5157417,135.03,135.0,4.44444444]
[1750561189909,11.08804967,135.04,135.0,4.44444444]
[1750561190106,5.51574566,135.03,135.0,4.44444444]
[1750561190312,11.08804967,135.05,135.0,15.53249411]
[1750561190615,5.51529846,135.04,135.0,15.53249411]
[1750561190813,5.51529846,135.03,135.0,15.53249411]
[1750561191014,43.29483873,135.07,135.0,15.53249411]
[1750561191199,11.08804967,135.05,135.0,15.53249411]
[1750561191528,5.51430044,135.04,135.0,15.53249411]
[1750561191712,11.08804967,135.05,135.0,15.53249411]
[1750561191915,5.51330671,135.04,135.0,15.53249411]
[1750561192100,11.08804967,135.05,135.0,15.53249411]
[1750561192302,5.51346166,135.04,135.0,15.53249411]
[1750561192629,11.08804967,135.05,135.0,15.53249411]
[1750561192803,16.60107037,135.04,134.99,4.44463693]
[1750561193123,16.60107037,135.04,134.93,28.27820253]
[1750561193124,37.08804967,135.0,134.93,4.44675016]
[1750561193319,11.08804967,134.96,134.93,4.44675016]
[1750561193499,11.08804967,134.96,134.92,4.44698181]
[1750561193702,11.08804967,134.95,134.92,4.44698181]
[1750561193919,11.08804967,134.95,134.91,4.4473633]
[1750561194116,11.08804967,134.94,134.91,4.4473633]
[1750561194529,5.50323629,134.98,134.91,4.4473633]
[1750561194530,11.08804967,134.93,134.91,4.4473633]
[1750561194902,11.08804967,134.93,134.89,4.44806879]
[1750561195308,11.08804967,134.92,134.89,4.44806879]
[1750561195506,11.08804967,134.91,134.89,4.44806879]
[1750561195726,11.08804967,134.91,134.87,4.4487284]
[1750561195925,11.08804967,134.9,134.87,4.4487284]
[1750561196438,11.08804967,134.89,134.87,4.4487284]
[1750561196814,11.08804967,134.89,134.85,4.4493882]
[1750561197415,11.08804967,134.88,134.85,4.4493882]
[1750561197615,11.08804967,134.86,134.82,15.53842795]
[1750561198121,11.08804967,134.86,134.82,4.45037828]
[1750561198315,11.08804967,134.85,134.82,4.45037828]
[1750561198734,11.08804967,134.85,134.81,15.5768797]
[1750561198947,26.0,134.87,134.81,26.66492937]
[1750561199109,11.08804967,134.86,134.81,26.66492937]
[1750561200049,26.0,134.87,134.81,26.66492937]
[1750561200050,11.08804967,134.85,134.81,26.66492937]
[1750561200358,26.0,134.87,134.81,26.66492937]
[1750561200359,11.08804967,134.84,134.81,4.4507084]
[1750561200522,1.6334,134.89,134.82,11.08804967]
[1750561200724,11.08804967,134.91,134.87,4.4487284]
[1750561201021,1.535,134.93,134.87,4.4487284]
[1750561201022,18.58804967,134.92,134.88,11.08804967]
[1750561201240,11.08804967,134.91,134.87,15.57054941]
[1750561201431,12.62304967,134.93,134.88,11.08804967]
[1750561201614,11.08804967,134.95,134.9,11.08804967]
[1750561201816,11.08804967,134.96,134.91,11.08804967]
[1750561202036,11.08804967,134.94,134.89,11.08804967]
[1750561202238,11.08804967,134.94,134.9,11.08804967]
[1750561202425,11.08804967,134.95,134.9,11.08804967]
[1750561202854,11.08804967,134.94,134.91,4.44740938]
[1750561203069,11.08804967,134.94,134.88,4.44839857]
[1750561203215,11.08804967,134.95,134.88,15.56939501]
[1750561203563,11.08804967,134.95,134.9,11.08804967]
[1750561204319,11.08804967,134.96,134.91,11.08804967]
[1750561204520,11.08804967,134.96,134.88,15.56939501]
[1750561204719,11.08804967,134.96,134.91,11.08804967]
[1750561205015,11.08804967,134.94,134.89,15.53611846]
[1750561205223,11.08804967,134.94,134.9,11.08804967]
[1750561205430,11.08804967,134.94,134.89,15.56824078]
[1750561205655,11.08804967,134.94,134.9,11.08804967]
[1750561205844,11.08804967,134.95,134.9,11.08804967]
[1750561206044,11.08804967,134.94,134.89,26.65629045]
[1750561206531,11.08804967,134.94,134.89,15.53611846]
[1750561206839,11.08804967,134.92,134.89,4.44806879]
[1750561207040,11.08804967,134.92,134.88,4.44839857]
[1750561208049,11.08804967,134.91,134.88,4.44839857]
[1750561209130,11.08804967,134.92,134.87,15.53677807]
[1750561213654,11.08804967,134.92,134.87,4.4487284]
[1750561213857,93.8855,134.99,134.9,11.08804967]
[1750561214154,26.0,134.96,134.92,11.08804967]
[1750561214544,12.62304967,134.97,134.92,11.08804967]
[1750561215029,11.08804967,134.96,134.91,11.08804967]
[1750561215833,1.535,134.97,134.92,4.44707975]
[1750561216261,11.08804967,134.95,134.92,4.44707975]
[1750561216552,11.08804967,134.96,134.92,4.44707975]
[1750561217155,44.48304967,134.97,134.92,15.53512942]
[1750561217453,11.08804967,134.96,134.92,4.44707975]
[1750561220566,11.08804967,134.95,134.92,4.44707975]
[1750561221449,11.08804967,134.96,134.92,4.44707975]
[1750561222829,11.08804967,134.96,134.92,15.56477912]
[1750561223056,44.48304967,134.97,134.92,26.65282879]
[1750561223232,11.08804967,134.96,134.92,26.65282879]
[1750561223746,11.08804967,134.93,134.9,4.44749584]
[1750561223944,11.08804967,134.94,134.9,4.44749584]
[1750561224333,16.55193017,134.96,134.92,4.44707975]
[1750561224536,70.48304967,134.97,134.92,15.53512942]
[1750561225266,11.08804967,134.96,134.92,4.44707975]
[1750561226054,11.08804967,134.94,134.91,4.44729082]
[1750561227035,11.08804967,134.95,134.91,4.44729082]
[1750561228962,38.62304967,134.97,134.92,11.08804967]
[1750561229258,70.44304967,134.97,134.92,11.08804967]
[1750561229636,11.08804967,134.96,134.91,26.65386395]
[1750561230856,11.08804967,134.95,134.91,15.56581428]
[1750561231757,11.08804967,134.94,134.91,4.44729082]
[1750561232565,11.08804967,134.93,134.91,4.44729082]
[1750561232868,16.56895717,134.94,134.91,4.44729082]
[1750561233050,11.08804967,134.94,134.91,4.44729082]
[1750561233554,16.56895717,134.94,134.91,4.44729082]
[1750561233745,11.08804967,134.94,134.91,4.44729082]
[1750561234257,16.56895717,134.94,134.91,4.44729082]
[1750561234440,11.08804967,134.94,134.91,4.44729082]
[1750561234767,5.4809075,134.93,134.91,4.44729082]
[1750561236266,11.08804967,134.94,134.91,4.44729082]
[1750561236653,5.50531433,134.93,134.91,4.44729082]
[1750561236977,11.08804967,134.94,134.9,4.44773906]
[1750561237149,5.51065719,134.93,134.9,4.44773906]
[1750561237349,11.08804967,134.94,134.9,4.44773906]
[1750561237556,5.51119529,134.93,134.9,4.44773906]
[1750561237752,5.51119529,134.92,134.9,4.44773906]
[1750561237954,11.08804967,134.94,134.9,4.44773906]
[1750561238162,5.51951148,134.93,134.9,4.44773906]
[1750561238347,5.51951148,134.92,134.9,4.44773906]
[1750561238548,11.08804967,134.94,134.9,4.44773906]
[1750561238855,5.52364614,134.93,134.9,4.44773906]
[1750561239052,5.52364614,134.92,134.9,4.44773906]
[1750561239253,11.08804967,134.94,134.9,4.44773906]
[1750561239458,5.52230467,134.93,134.9,4.44773906]
[1750561239648,5.52230467,134.92,134.88,4.44839857]
[1750561239849,11.08804967,134.92,134.88,4.44839857]
[1750561240463,5.52424365,134.91,134.88,4.44839857]
[1750561240675,11.08804967,134.92,134.88,4.44839857]
[1750561240852,5.52273572,134.91,134.88,4.44839857]
[1750561241055,11.08804967,134.92,134.88,4.44839857]
[1750561241244,5.52275965,134.91,134.88,4.44839857]
[1750561241440,11.08804967,134.92,134.88,4.44839857]
[1750561241675,5.52314084,134.91,134.88,4.44839857]
[1750561241855,5.52314084,134.9,134.88,4.44839857]
[1750561242051,11.08804967,134.92,134.88,4.44839857]
[1750561242372,5.52330218,134.91,134.88,4.44839857]
[1750561242660,11.08804967,134.92,134.88,4.44839857]
[1750561242868,5.52569345,134.91,134.88,4.44839857]
[1750561243070,6.80529715,134.99,134.93,26.0]
[1750561243274,5.52851685,134.98,134.97,11.08804967]
[1750561243445,5.52851685,135.0,134.97,37.08804967]
[1750561243647,5.52851685,135.02,134.99,37.08804967]
[1750561243848,5.5325442,135.04,135.01,11.08804967]
[1750561244064,5.53195788,135.05,135.03,11.08804967]
[1750561244265,11.08804967,135.06,135.01,6.101]
[1750561244573,5.53265716,135.05,135.01,17.18904967]
[1750561244760,5.53265716,135.05,135.01,11.08804967]
[1750561244761,5.52763659,135.05,135.01,11.08804967]
[1750561245163,5.52901165,135.05,135.01,11.08804967]
[1750561245357,11.08804967,135.06,135.01,15.5319345]
[1750561245551,5.52903567,135.05,135.01,15.5319345]
[1750561245758,5.52903567,135.06,135.02,11.08804967]
[1750561245968,11.08804967,135.07,135.02,11.08804967]
[1750561246170,16.61708534,135.07,135.02,11.08804967]
[1750561246373,11.08804967,135.07,135.02,11.08804967]
[1750561247877,31.52903567,135.08,135.03,11.08804967]
[1750561248050,41.52992213,135.08,135.03,11.08804967]
[1750561248247,11.08804967,135.07,135.03,11.08804967]
[1750561248660,11.08804967,135.07,135.02,15.53175079]
[1750561251352,11.08804967,135.07,135.02,11.08804967]
[1750561251568,31.5019567,135.08,135.02,11.08804967]
[1750561251783,11.08804967,135.07,135.02,11.08804967]
[1750561251973,11.08804967,135.07,135.02,15.5316384]
[1750561252777,4.44222392,135.07,135.0,11.08804967]
[1750561252978,4.44222392,135.07,134.99,11.08804967]
[1750561252979,11.08804967,135.04,134.99,11.08804967]
[1750561253272,11.08804967,135.05,135.0,11.08804967]
[1750561253670,11.08804967,135.05,135.0,37.08804967]
[1750561253874,11.08804967,135.05,135.0,41.53232721]
[1750561254054,16.59000637,135.06,135.01,11.08804967]
[1750561254259,11.08804967,135.06,135.01,11.08804967]
[1750561255859,11.08804967,135.06,135.01,15.53187787]
[1750561258161,113.6,135.07,135.01,15.53187787]
[1750561258488,124.68804967,135.07,135.02,11.08804967]
[1750561258660,37.08804967,135.07,135.02,11.08804967]
[1750561258987,26.0,135.07,135.02,11.08804967]
[1750561259165,37.08804967,135.07,135.02,11.08804967]
[1750561260311,11.08804967,135.05,134.97,65.48384935]
[1750561260592,11.08804967,135.05,135.0,11.08804967]
[1750561261476,11.08804967,135.06,135.01,11.08804967]
[1750561261979,37.08804967,135.02,134.97,6.101]
[1750561262174,37.08804967,135.02,134.93,11.110911]
[1750561262175,11.08804967,134.98,134.93,21.81676291]
[1750561262361,11.08804967,134.96,134.92,15.53491244]
[1750561262685,11.08804967,134.95,134.92,4.44686277]
[1750561263187,31.66,134.97,134.91,15.53533107]
[1750561263362,11.08804967,134.96,134.91,15.53533107]
[1750561264296,42.74804967,134.97,134.92,11.08804967]
[1750561264661,33.36,134.99,134.92,11.08804967]
[1750561264868,11.08804967,134.98,134.93,11.08804967]
[1750561265058,11.08804967,134.97,134.93,11.08804967]
[1750561265484,11.08804967,134.96,134.92,11.08804967]
[1750561265687,11.08804967,134.96,134.91,22.20657313]
[1750561265900,11.08804967,134.96,134.91,11.11852346]
[1750561266060,65.02,134.99,134.91,22.20657313]
[1750561266262,11.08804967,134.98,134.94,4.44642063]
[1750561266466,11.08804967,134.97,134.94,4.44642063]
[1750561267096,11.08804967,134.98,134.94,4.44642063]
[1750561267398,39.02,134.99,134.94,15.5344703]
[1750561267704,11.08804967,134.98,134.94,15.5344703]
[1750561268811,11.08804967,134.98,134.94,4.44642063]
[1750561269176,11.08804967,134.98,134.94,15.5344703]
[1750561269568,11.08804967,134.97,134.94,4.44642063]
[1750561269902,11.08804967,134.98,134.94,4.44642063]
[1750561270985,11.08804967,134.97,134.94,4.44642063]
[1750561271699,50.10804967,134.99,134.94,15.5344703]
[1750561272478,50.10804967,134.99,134.96,4.4457617]
[1750561272683,11.08804967,135.0,134.96,15.56016596]
[1750561272880,11.08804967,135.02,134.97,11.08804967]
[1750561273804,11.08804967,135.04,134.99,11.08804967]
[1750561274562,11.08804967,135.04,135.0,4.44444444]
[1750561274875,1.6422,135.11,135.03,11.08804967]
[1750561275099,11.08804967,135.08,135.03,11.08804967]
[1750561275421,26.0,135.08,135.03,11.08804967]
[1750561275604,11.08804967,135.07,135.02,11.08804967]
[1750561275791,11.08804967,135.08,135.03,11.08804967]
[1750561275987,11.08804967,135.09,135.04,11.08804967]
[1750561276502,11.08804967,135.09,135.05,4.44279896]
[1750561277218,12.73024967,135.11,135.06,11.08804967]
[1750561277601,11.08804967,135.1,135.06,11.08804967]
[1750561277822,12.73024967,135.11,135.06,11.08804967]
[1750561278708,12.73024967,135.11,135.07,4.44214111]
[1750561279332,11.08804967,135.11,135.07,4.44214111]
[1750561279809,68.70804967,135.12,135.07,15.53019078]
[1750561280002,37.08804967,135.12,135.07,15.53019078]
[1750561280409,18.44804967,135.13,135.08,11.08804967]
[1750561280613,7.36,135.13,135.09,11.08804967]
[1750561280823,7.36,135.13,135.1,4.4411547]
[1750561281712,18.44804967,135.13,135.1,4.4411547]
[1750561281913,11.08804967,135.12,135.09,4.44139828]
[1750561282226,11.08804967,135.11,135.06,11.08804967]
[1750561282735,11.80024486,135.13,135.05,15.54979636]
[1750561282736,26.00964886,135.13,135.05,26.63784603]
[1750561283031,11.08804967,135.11,135.06,11.08804967]
[1750561283420,7.36,135.13,135.07,11.08804967]
[1750561283631,11.08804967,135.12,135.07,11.08804967]
[1750561283928,7.36,135.13,135.09,11.08804967]
[1750561284723,18.44804967,135.13,135.08,26.63439256]
[1750561285103,7.36,135.13,135.09,11.08804967]
[1750561285811,44.34704967,135.15,135.09,11.08804967]
[1750561286005,37.08804967,135.16,135.11,11.08804967]
[1750561286207,5.48604543,135.17,135.12,11.08804967]
[1750561286534,11.08804967,135.17,135.12,11.08804967]
[1750561286821,5.48604543,135.17,135.14,18.41298943]
[1750561287021,12.34366297,135.18,135.1,15.54404145]
[1750561287022,5.04366297,135.18,135.16,18.41298943]
[1750561287810,5.04366297,135.18,135.15,18.41298943]
[1750561288028,5.04366297,135.18,135.16,4.43918319]
[1750561288221,18.41298943,135.17,135.1,4.4411547]
[1750561288528,23.90000736,135.17,135.12,18.41298943]
[1750561288703,18.41298943,135.16,135.12,18.41298943]
[1750561289034,5.48701793,135.17,135.1,22.85414413]
[1750561289035,7.11031793,135.17,135.1,22.85414413]
[1750561289325,18.41298943,135.15,135.1,22.85414413]
[1750561290133,5.48701793,135.17,135.1,37.74981495]
[1750561290340,28.94367033,135.18,135.1,41.54404145]
[1750561290504,18.41298943,135.15,135.1,59.95703088]
[1750561290708,18.41298943,135.15,135.1,33.95703088]
[1750561290912,18.41298943,135.15,135.1,22.85414413]
[1750561291118,57.56,135.16,135.1,4.4411547]
[1750561291425,18.41298943,135.15,135.1,22.85414413]
[1750561292121,18.41298943,135.15,135.1,33.95703088]
[1750561292324,57.56,135.16,135.11,18.41298943]
[1750561292508,18.41298943,135.15,135.11,18.41298943]
[1750561292714,18.41298943,135.15,135.1,22.85414413]
[1750561292913,18.41298943,135.13,135.1,4.4411547]
[1750561293931,18.41298943,135.13,135.09,4.44148345]
[1750561295838,18.41298943,135.11,135.07,4.44214111]
[1750561296221,18.41298943,135.1,135.06,4.44234228]
[1750561296425,18.41298943,135.08,135.04,4.44312796]
[1750561297006,7.28,135.11,135.07,18.41298943]
[1750561297218,7.28,135.11,135.08,18.41298943]
[1750561297426,31.54,135.12,135.09,18.41298943]
[1750561297622,26.0,135.13,135.09,18.41298943]
[1750561298045,26.0,135.13,135.1,4.4411547]
[1750561299010,18.41298943,135.14,135.1,4.4411547]
[1750561299336,44.41298943,135.14,135.1,4.4411547]
[1750561300227,18.41298943,135.13,135.1,4.4411547]
[1750561301051,18.41298943,135.12,135.08,22.85468208]
[1750561301243,18.41298943,135.12,135.07,18.41298943]
[1750561301439,18.41298943,135.12,135.08,18.41298943]
[1750561302661,18.41298943,135.12,135.07,18.41298943]
[1750561302954,26.0,135.14,135.08,18.41298943]
[1750561303245,18.41298943,135.13,135.09,4.44148345]
[1750561303952,7.417,135.17,135.09,4.44148345]
[1750561303953,5.04366297,135.18,135.12,18.41298943]
[1750561304117,5.04366297,135.18,135.13,0.5009]
[1750561304324,5.04366297,135.18,135.14,18.64964886]
[1750561304525,5.04366297,135.18,135.16,18.41298943]
[1750561305454,5.04366297,135.18,135.17,4.43885477]
[1750561306355,5.04366297,135.18,135.17,22.8518442]
[1750561307923,5.04366297,135.18,135.17,4.43885477]
[1750561308121,5.04366297,135.18,135.17,22.8518442]
[1750561310657,5.04366297,135.18,135.17,41.50149306]
[1750561311236,8.33333333,135.2,135.19,26.0]
[1750561311549,8.33333333,135.2,135.19,44.41298943]
[1750561311719,8.33333333,135.2,135.19,18.41298943]
[1750561311920,8.33333333,135.2,135.19,66.89823229]
[1750561312141,13.29759609,135.33,135.26,18.41298943]
[1750561312337,11.67899609,135.33,135.3,18.41298943]
[1750561312546,6.86185971,135.38,135.29,18.64964886]
[1750561312547,31.73632973,135.37,135.29,18.64964886]
[1750561312768,31.73632973,135.37,135.28,6.4212]
[1750561312769,18.41298943,135.35,135.28,6.4212]
[1750561312969,18.41298943,135.34,135.29,18.41298943]
[1750561313340,49.91298943,135.35,135.3,18.41298943]
[1750561313546,13.3233403,135.37,135.33,18.41298943]
[1750561313771,13.3233403,135.37,135.36,18.41298943]
[1750561313976,13.3233403,135.37,135.35,4.4329516]
[1750561314344,13.3233403,135.37,135.35,22.84594103]
[1750561314653,13.3233403,135.37,135.36,18.41298943]
[1750561315368,13.3233403,135.37,135.36,37.06263829]
[1750561315749,13.3233403,135.37,135.36,67.4952624]
[1750561316567,13.3233403,135.37,135.36,4.43262411]
[1750561316737,13.3233403,135.37,135.36,22.84561354]
[1750561317362,13.3233403,135.37,135.36,4.43262411]
[1750561317550,13.3233403,135.37,135.36,22.84561354]
[1750561317756,13.3233403,135.37,135.36,4.43262411]
[1750561317954,13.3233403,135.37,135.36,22.84561354]
[1750561320576,13.3233403,135.37,135.35,22.84593739]
[1750561320763,13.3233403,135.37,135.32,18.41298943]
[1750561320764,31.73632973,135.37,135.32,18.41298943]
[1750561321087,31.73632973,135.37,135.3,6.5461]
[1750561321088,18.41298943,135.35,135.3,18.41298943]
[1750561321290,18.41298943,135.34,135.29,18.41298943]
[1750561321580,5.41754058,135.36,135.3,18.41298943]
[1750561321777,18.41298943,135.35,135.3,18.41298943]
[1750561321958,39.3233403,135.37,135.33,4.43360673]
[1750561322146,18.41298943,135.36,135.31,18.41298943]
[1750561322345,23.82901084,135.36,135.31,18.41298943]
[1750561322547,18.41298943,135.33,135.28,18.41298943]
[1750561322753,18.41298943,135.31,135.27,4.43557329]
[1750561322987,18.41298943,135.3,135.27,4.43557329]
[1750561323979,18.41298943,135.3,135.26,4.43590122]
[1750561324179,18.41298943,135.28,135.25,4.43616536]